lending/lending_fUSD_20240401
["ID","MTS","AMOUNT","RATE_DAILY","PERIOD"]
[321234520,1712005841257,-1248.06285307,0.000599,120]
[321234521,1712005841267,-1248.06285307,0.000599,120]
[321234522,1712005841276,-1248.06285307,0.000599,120]
[321234523,1712005841289,-1248.06285307,0.000599,120]
[321234524,1712005841298,-1248.06285307,0.000599,120]
[321234525,1712005841307,-1248.06285307,0.000599,120]
[321234526,1712005841317,-1248.06285307,0.000599,120]
[321234527,1712005841327,-1248.06285307,0.000599,120]
[321234528,1712005841336,-1248.06285307,0.000599,120]
[321234529,1712005841345,-1248.06285307,0.000599,120]
[321234530,1712005841355,-1248.06285307,0.000599,120]
[321234531,1712005841365,-1248.06285307,0.000599,120]
[321234532,1712005841375,-1248.06285307,0.000599,120]
[321234533,1712005841385,-1248.06285307,0.000599,120]
[321234534,1712005841395,-1248.06285307,0.000599,120]
[321234535,1712005841405,-1248.06285307,0.000599,120]
[321234536,1712005841415,-1248.06285307,0.000599,120]
[321234537,1712005841427,-1248.06285307,0.000599,120]
[321234538,1712005841436,-1248.06285307,0.000599,120]
[321234539,1712005841446,-150.0,0.00059932,14]
[321234540,1712005841456,-150.0,0.0005994,120]
[321234541,1712005841465,-150.0,0.0005994,120]
[321234542,1712005841478,-150.0,0.0005994,120]
[321234543,1712005841489,-160.22977354,0.0005994,120]
[321234544,1712005841498,-5800.0,0.00059983,18]
[321234545,1712005841507,-500.0,0.00059987,7]
[321234546,1712005841516,-500.0,0.00059987,7]
[321234547,1712005841526,-500.0,0.00059987,7]
[321234548,1712005841535,-500.0,0.00059987,7]
[321234549,1712005841544,-500.0,0.00059987,7]
[321234550,1712005841553,-500.0,0.00059987,7]
[321234551,1712005841563,-500.0,0.00059987,7]
[321234552,1712005841572,-500.0,0.00059987,7]
[321234553,1712005841582,-500.0,0.00059987,7]
[321234554,1712005841592,-500.0,0.00059987,7]
[321234555,1712005841602,-500.0,0.00059987,7]
[321234556,1712005841611,-500.0,0.00059987,7]
[321234557,1712005841621,-500.0,0.00059987,7]
[321234558,1712005841630,-500.0,0.00059987,7]
[321234559,1712005841640,-500.0,0.00059987,7]
[321234560,1712005841649,-500.0,0.00059987,7]
[321234561,1712005841659,-500.0,0.00059987,7]
[321234562,1712005841668,-500.0,0.00059987,7]
[321234563,1712005841678,-500.0,0.00059987,7]
[321234564,1712005841687,-500.0,0.00059987,7]
[321234565,1712005841696,-500.0,0.00059987,7]
[321234566,1712005841705,-500.0,0.00059987,7]
[321234567,1712005841714,-500.0,0.00059987,7]
[321234568,1712005841726,-500.0,0.00059987,7]
[321234569,1712005841735,-500.0,0.00059987,7]
[321234570,1712005841745,-500.0,0.00059987,7]
[321234571,1712005841754,-500.0,0.00059987,7]
[321234572,1712005841764,-500.0,0.00059987,7]
[321234573,1712005841773,-500.0,0.00059987,7]
[321234574,1712005841783,-500.0,0.00059987,7]
[321234575,1712005841792,-500.0,0.00059987,7]
[321234576,1712005841802,-500.0,0.00059987,7]
[321234577,1712005841812,-500.0,0.00059987,7]
[321234578,1712005841821,-500.0,0.00059987,7]
[321234579,1712005841835,-500.0,0.00059987,7]
[321234580,1712005841844,-500.0,0.00059987,7]
[321234581,1712005841854,-500.0,0.00059987,7]
[321234582,1712005841864,-500.0,0.00059987,7]
[321234583,1712005841873,-500.0,0.00059987,7]
[321234584,1712005841883,-500.0,0.00059987,7]
[321234585,1712005841893,-500.0,0.00059987,7]
[321234586,1712005841903,-500.0,0.00059987,7]
[321234587,1712005841912,-500.0,0.00059987,7]
[321234588,1712005841922,-500.0,0.00059987,7]
[321234589,1712005841932,-500.0,0.00059987,7]
[321234590,1712005841941,-500.0,0.00059987,7]
[321234591,1712005841951,-500.0,0.00059987,7]
[321234592,1712005841960,-500.0,0.00059987,7]
[321234593,1712005841970,-500.0,0.00059987,7]
[321234594,1712005841979,-500.0,0.00059987,7]
[321234595,1712005841989,-500.0,0.00059987,7]
[321234596,1712005841999,-500.0,0.00059987,7]
[321234597,1712005842008,-500.0,0.00059987,7]
[321234598,1712005842018,-500.0,0.00059987,7]
[321234599,1712005842027,-500.0,0.00059987,7]
[321234600,1712005842036,-500.0,0.00059987,7]
[321234601,1712005842046,-500.0,0.00059987,7]
[321234602,1712005842058,-500.0,0.00059987,7]
[321234603,1712005842067,-500.0,0.00059987,7]
[321234604,1712005842079,-500.0,0.00059987,7]
[321234605,1712005842091,-500.0,0.00059987,7]
[321234606,1712005842101,-500.0,0.00059987,7]
[321234607,1712005842112,-500.0,0.00059987,7]
[321234608,1712005842122,-500.0,0.00059987,7]
[321234609,1712005842131,-500.0,0.00059987,7]
[321234610,1712005842141,-500.0,0.00059987,7]
[321234611,1712005842151,-500.0,0.00059987,7]
[321234612,1712005842161,-500.0,0.00059987,7]
[321234613,1712005842171,-500.0,0.00059987,7]
[321234614,1712005842183,-500.0,0.00059987,7]
[321234615,1712005842193,-500.0,0.00059987,7]
[321234616,1712005842203,-500.0,0.00059987,7]
[321234617,1712005842213,-500.0,0.00059987,7]
[321234618,1712005842222,-500.0,0.00059987,7]
[321234619,1712005842232,-500.0,0.00059987,7]
[321234620,1712005842241,-500.0,0.00059987,7]
[321234621,1712005842251,-500.0,0.00059987,7]
[321234622,1712005842261,-500.0,0.00059987,7]
[321234623,1712005842272,-381.86,0.00059987,7]
[321234624,1712005842282,-500.0,0.00059987,7]
[321234625,1712005842292,-500.0,0.00059987,7]
[321234626,1712005842302,-500.0,0.00059987,7]
[321234627,1712005842311,-500.0,0.00059987,7]
[321234628,1712005842321,-500.0,0.00059987,7]
[321234629,1712005842331,-500.0,0.00059987,7]
[321234630,1712005842341,-500.0,0.00059987,7]
[321234631,1712005842350,-500.0,0.00059987,7]
[321234632,1712005842361,-500.0,0.00059987,7]
[321234633,1712005842376,-500.0,0.00059987,7]
[321234634,1712005842386,-500.0,0.00059987,7]
[321234635,1712005842397,-500.0,0.00059987,7]
[321234636,1712005842406,-500.0,0.00059987,7]
[321234637,1712005842417,-500.0,0.00059987,7]
[321234638,1712005842427,-500.0,0.00059987,7]
[321234639,1712005842437,-500.0,0.00059987,7]
[321234640,1712005842446,-500.0,0.00059987,7]
[321234641,1712005842456,-500.0,0.00059987,7]
[321234642,1712005842466,-500.0,0.00059987,7]
[321234643,1712005842475,-500.0,0.00059987,7]
[321234644,1712005842485,-500.0,0.00059987,7]
[321234645,1712005842494,-500.0,0.00059987,7]
[321234646,1712005842505,-500.0,0.00059987,7]
[321234647,1712005842515,-500.0,0.00059987,7]
[321234649,1712005842524,-500.0,0.00059987,7]
[321234650,1712005842534,-500.0,0.00059987,7]
[321234651,1712005842543,-500.0,0.00059987,7]
[321234652,1712005842552,-500.0,0.00059987,7]
[321234653,1712005842562,-441.02,0.00059987,7]
[321234654,1712005842572,-500.0,0.00059987,7]
[321234655,1712005842581,-500.0,0.00059987,7]
[321234656,1712005842591,-500.0,0.00059987,7]
[321234657,1712005842601,-500.0,0.00059987,7]
[321234658,1712005842611,-500.0,0.00059987,7]
[321234659,1712005842620,-506.13,0.00059987,7]
[321234660,1712005842630,-151.99,0.0005999,120]
[321234661,1712005842640,-5800.0,0.00059991,18]
[321234662,1712005842649,-1965.33,0.00059999,120]
[321234663,1712005842659,-2633.51,0.00059999,120]
[321234664,1712005842669,-8011.02,0.00059999,120]
[321234665,1712005842680,-500.0,0.00059999,120]
[321234666,1712005842690,-897.62544315,0.0006,120]
[321234668,1712005842699,-104013.71234297,0.0006,120]
[321234670,1712005842709,-1652.648893,0.0006,120]
[321234672,1712005842718,-3199.90089924,0.0006,90]
[321234674,1712005842728,-600.0,0.0006,60]
[321234676,1712005842741,-234533.73931016,0.0006,120]
[321234678,1712005842750,-1495.19701797,0.0006,7]
[321234679,1712005842760,-518.06512933,0.0006,90]
[321234682,1712005842770,-8905.49848806,0.0006,120]
[321234683,1712005842782,-2738.09175725,0.0006,87]
[321234685,1712005842791,-7537.46096844,0.0006,120]
[321234687,1712005842800,-1515.83375027,0.0006,120]
[321234689,1712005842810,-60624.40066243,0.0006,30]
[321234691,1712005842820,-21019.2203715,0.0006,120]
[321234693,1712005842829,-1004.49987673,0.0006,14]
[321234695,1712005842838,-1011.24096575,0.0006,120]
[321234696,1712005842847,-18691.64300673,0.0006,120]
[321234697,1712005842857,-1499.99999901,0.0006,7]
[321234698,1712005842866,-2948.50582799,0.0006,120]
[321234699,1712005842875,-775715.97781997,0.0006,60]
[321234700,1712005842885,-1132.68418202,0.0006,120]
[321234701,1712005842894,-151.0,0.0006,120]
[321234702,1712005842905,-848.90887092,0.0006,30]
[321234703,1712005842914,-1211.13787714,0.0006,120]
[321234704,1712005842923,-547.5,0.0006,30]
[321234705,1712005842934,-151.0,0.0006,120]
[321234706,1712005842943,-151.0,0.0006,120]
[321234707,1712005842952,-5800.0,0.0006,18]
[321234708,1712005842961,-5173.25318882,0.0006,120]
[321234709,1712005842970,-151.0,0.0006,120]
[321234710,1712005842979,-151.0,0.0006,120]
[321234711,1712005842988,-155.95513194,0.00060004,60]
[321234712,1712005842997,-156.29243952,0.00060017,120]
[321234713,1712005843008,-500.0,0.00060024,90]
[321234714,1712005843017,-150.0,0.00060031,14]
[321234715,1712005843026,-154.22586693,0.00060047,120]
[321234716,1712005843036,-643.88,0.000601,30]
[321234717,1712005843045,-926.22,0.00060118,120]
[321234718,1712005843054,-62682.64955533,0.0006012,2]
[321234719,1712005843063,-162.10071881,0.00060125,120]
[321234720,1712005843072,-167.96458414,0.00060131,120]
[321234721,1712005843081,-150.0,0.00060133,14]
[321234722,1712005843090,-150.0,0.000602,14]
[321234723,1712005843100,-150.0,0.0006024,14]
[321234724,1712005843109,-150.0,0.0006025,14]
[321234725,1712005843118,-150.0,0.00060251,14]
[321234726,1712005843128,-150.0,0.0006026,14]
[321234727,1712005843137,-666.0,0.00060273,120]
[321234728,1712005843147,-1965.33,0.00060273,120]
[321234729,1712005843156,-2633.51,0.00060273,120]
[321234730,1712005843166,-8011.02,0.00060273,120]
[321234731,1712005843175,-294.4904025,0.00060273,120]
[321234732,1712005843185,-37164.23,0.00060274,30]
[321234733,1712005843194,-500.0,0.00060298,90]
[321234734,1712005843203,-500.70941903,0.000603,30]
[321234735,1712005843213,-150.0,0.00060301,30]
[321234736,1712005843222,-357.31250114,0.00060301,39]
[321234737,1712005843231,-1500.0,0.00060359,30]
[321234738,1712005843241,-152.93655063,0.00060361,120]
[321234739,1712005843250,-317.07608645,0.00060371,2]
[321234740,1712005843260,-234.64631894,0.00060377,120]
[321234741,1712005843269,-51274.1652463,0.0006038,2]
[321234742,1712005843278,-892.0,0.000604,30]
[321234743,1712005843288,-961.88,0.000604,120]
[321234744,1712005843298,-4943.6494835,0.00060474,2]
[321234745,1712005843307,-150.0,0.00060489,30]
[321234746,1712005843317,-372.22993155,0.00060496,2]
[321234747,1712005843326,-150.0,0.00060505,30]
[321234748,1712005843335,-151.0,0.0006051,87]
[321234749,1712005843345,-150.0,0.00060522,30]
[321234750,1712005843354,-335450.48872063,0.00060532,120]
[321234751,1712005843363,-150.0,0.00060543,30]
[321234752,1712005843372,-1965.33,0.00060547,120]
[321234753,1712005843381,-2633.51,0.00060547,120]
[321234754,1712005843390,-8011.02,0.00060547,120]
[321234755,1712005843399,-5000.0,0.00060547,120]
[321234756,1712005843409,-152.166961,0.00060567,30]
[321234757,1712005843418,-300.0,0.00060571,30]
[321234758,1712005843428,-500.0,0.00060572,90]
[321234759,1712005843438,-48950.0,0.00060574,120]
[321234760,1712005843447,-150.0,0.00060597,30]
[321234761,1712005843456,-150.0,0.00060605,30]
[321234762,1712005843466,-1500.0,0.00060613,30]
[321234763,1712005843475,-150.0,0.00060629,30]
[321234764,1712005843483,-1500.0,0.0006063,30]
[321234765,1712005843493,-226.228,0.0006064,120]
[321234766,1712005843502,-304.29307054,0.00060645,30]
[321234767,1712005843511,-500.0,0.00060682,2]
[321234768,1712005843520,-410.0528,0.00060682,2]
[321234769,1712005843529,-1000.0,0.00060682,2]
[321234770,1712005843539,-1000.0,0.00060682,2]
[321234771,1712005843548,-1000.0,0.00060682,2]
[321234772,1712005843557,-1000.0,0.00060682,2]
[321234773,1712005843567,-1000.0,0.00060682,2]
[321234774,1712005843576,-1000.0,0.00060682,2]
[321234775,1712005843585,-1000.0,0.00060682,2]
[321234776,1712005843595,-1000.0,0.00060682,2]
[321234777,1712005843605,-1000.0,0.00060682,2]
[321234778,1712005843614,-1000.0,0.00060682,2]
[321234779,1712005843624,-1000.0,0.00060682,2]
[321234780,1712005843633,-1000.0,0.00060682,2]
[321234781,1712005843642,-1000.0,0.00060682,2]
[321234782,1712005843651,-1000.0,0.00060682,2]
[321234783,1712005843660,-1000.0,0.00060682,2]
[321234784,1712005843669,-1000.0,0.00060682,2]
[321234785,1712005843679,-1000.0,0.00060682,2]
[321234786,1712005843688,-1000.0,0.00060682,2]
[321234787,1712005843700,-1000.0,0.00060682,2]
[321234788,1712005843709,-1000.0,0.00060682,2]
[321234789,1712005843718,-1000.0,0.00060682,2]
[321234790,1712005843731,-1000.0,0.00060682,2]
[321234791,1712005843741,-1071.8497,0.00060682,2]
[321234792,1712005843751,-500.0,0.00060682,2]
[321234793,1712005843760,-500.0,0.00060682,2]
[321234794,1712005843770,-500.0,0.00060682,2]
[321234795,1712005843779,-500.0,0.00060682,2]
[321234796,1712005843789,-500.0,0.00060682,2]
[321234797,1712005843798,-500.0,0.00060682,2]
[321234798,1712005843807,-500.0,0.00060682,2]
[321234799,1712005843818,-500.0,0.00060682,2]
[321234800,1712005843827,-500.0,0.00060682,2]
[321234801,1712005843836,-565.1923,0.00060682,2]
[321234802,1712005843845,-150.0,0.00060685,30]
[321234803,1712005843855,-150.0,0.00060686,30]
[321234804,1712005843864,-280.56,0.000607,14]
[321234805,1712005843873,-150.0,0.000607,30]
[321234806,1712005843884,-1500.0,0.00060713,30]
[321234807,1712005843894,-150.38124941,0.00060715,120]
[321234808,1712005843906,-150.0,0.00060724,30]
[321234809,1712005843916,-1500.0,0.0006073,30]
[321234810,1712005843924,-150.0,0.00060749,30]
[321234811,1712005843933,-150.0,0.0006075,30]
[321234812,1712005843942,-150.0,0.00060761,30]
[321234813,1712005843952,-150.0,0.00060776,30]
[321234814,1712005843961,-150.0,0.00060778,30]
[321234815,1712005843970,-1500.0,0.00060782,30]
[321234816,1712005843979,-1500.0,0.00060786,30]
[321234817,1712005843988,-150.0,0.00060788,30]
[321234818,1712005843997,-162.07,0.00060795,120]
[321234819,1712005844006,-150.0,0.00060796,30]
[321234820,1712005844015,-1670.345442,0.000608,2]
[321234821,1712005844024,-150.0,0.00060801,30]
[321234822,1712005844034,-357.31250114,0.00060808,40]
[321234823,1712005844043,-150.0,0.00060815,30]
[321234824,1712005844052,-1965.33,0.00060821,120]
[321234825,1712005844062,-2633.51,0.00060821,120]
[321234826,1712005844071,-8011.02,0.00060821,120]
[321234827,1712005844080,-150.0,0.00060823,30]
[321234828,1712005844090,-170.0198104,0.00060844,2]
[321234829,1712005844099,-150.0,0.00060884,30]
[321234830,1712005844108,-269.67579628,0.00060888,120]
[321234831,1712005844118,-480.0,0.000609,50]
[321234832,1712005844127,-464.0,0.000609,40]
[321234833,1712005844136,-5000.0,0.000609,120]
[321234834,1712005844145,-600.0,0.000609,22]
[321234835,1712005844155,-156.29243952,0.00060926,120]
[321234836,1712005844164,-150.0,0.00060927,30]
[321234837,1712005844173,-1500.0,0.00060928,30]
[321234838,1712005844183,-300.0,0.00060929,30]
[321234839,1712005844191,-150.0,0.00060939,30]
[321234840,1712005844201,-150.0,0.00060939,30]
[321234841,1712005844210,-1000.0,0.00060946,30]
[321234842,1712005844219,-1500.0,0.00060961,30]
[321234843,1712005844228,-150.0,0.00060983,30]
[321234844,1712005844237,-1000.0,0.00060987,2]
[321234845,1712005844246,-1000.0,0.00060987,2]
[321234846,1712005844400,-1000.0,0.00060987,2]
[321234847,1712005844410,-604.62020788,0.00060987,2]
[321234848,1712005844419,-124091.6253862,0.00060997,2]
[321234849,1712005844430,-8698.4007877,0.00060997,2]
[321234850,1712005844439,-20977.8846842,0.00060997,2]
[321234851,1712005844449,-288.9081801,0.00060998,7]
[321234852,1712005844458,-168.25332278,0.00060998,7]
[321234853,1712005844467,-286.5744089,0.00060998,7]
[321234854,1712005844476,-294.72243506,0.00060998,7]
[321234855,1712005844485,-1921.27100375,0.00060999,7]
[321234856,1712005844495,-237.50769212,0.00060999,120]
[321234857,1712005844505,-23975.07196956,0.00060999,120]
[321234858,1712005844515,-151.0,0.00060999,120]
[321234859,1712005844524,-151.0,0.00060999,120]
[321234860,1712005844534,-1065078.18796896,0.00061,120]
[321234861,1712005844619,-340516.33855994,0.00061,120]
[321234862,1712005844643,-204.76482715,0.000589,2]
[321234863,1712005844654,-2307.85882911,0.00061,120]
[321234864,1712005844669,-69711.80236687,0.00061,120]
[321234865,1712005844715,-2785.97473816,0.00061,120]
[321234866,1712005844728,-17453.337,0.00061,120]
[321234867,1712005844747,-3153.59761616,0.00061,120]
[321234868,1712005844761,-108008.69607055,0.00061,120]
[321234869,1712005844772,-23166.31193745,0.00061,120]
[321234870,1712005844786,-5917.76994183,0.00061,120]
[321234871,1712005844799,-503.19150413,0.00061,120]
[321234880,1712005846244,-9831.64326154,0.00061,120]
[321234881,1712005846256,-139329.99999994,0.00061,120]
[321234882,1712005846284,-968.08163072,0.00051984,120]
[321234883,1712005846298,-1879.48629503,0.00051984,120]
[321234884,1712005846308,-2804.77300603,0.00061,120]
[321234885,1712005846398,-179.66255725,0.00061,120]
[321234886,1712005873709,-404.93737315,0.0003,4]
[321234907,1712006812774,-2085.81107632,0.000299,2]
[321234908,1712006812796,-174.48554785,0.0003,4]
[321234909,1712006812815,-3239.70337583,0.0003,4]
[321234910,1712006832129,-60.00640556,0.0003,4]
[321234911,1712006832150,-550.27077473,0.0003,4]
[321234914,1712006849020,-2020.0,0.0003,4]
[321234915,1712006849076,-59.94682527,0.0003,4]
[321234916,1712006849096,-471.38711163,0.0003,4]
[321234917,1712006849123,-2000.0,0.00036,4]
[321234918,1712006849143,-156.88,0.00037808,2]
[321234919,1712006849165,-255.79198466,0.0004,30]
[321234920,1712006849187,-1500.0,0.000413,41]
[321234921,1712006849210,-1500.0,0.000418,41]
[321234922,1712006849231,-1333.31410469,0.000423,41]
[321234925,1712006952081,-1834.64585599,0.0003,4]
[321234926,1712006952103,-178.90015168,0.0003,2]
[321234927,1712006973186,-1666.685895,0.000428,41]
[321234928,1712006973207,-1500.0,0.000433,41]
[321234929,1712006973229,-300.0,0.00043341,2]
[321234930,1712006973252,-271.74907775,0.00045,2]
[321234931,1712006973274,-3202.48102725,0.00045,2]
[321234946,1712007031887,-151.91763195,0.00043632,48]
[321234947,1712007031896,-100.43236807,0.00043632,48]
[321234948,1712007031942,-51.48526388,0.00043632,48]
[321234949,1712007031952,-151.0,0.00048,120]
[321234950,1712007031961,-1329.30358593,0.0005,30]
[321234951,1712007031970,-162.55524012,0.00052558,2]
[321234952,1712007031980,-151.0,0.00052658,120]
[321234953,1712007031989,-275.57,0.00053117,2]
[321234954,1712007032000,-3370.51364512,0.00054,2]
[321234955,1712007032009,-821.73608398,0.0005429,4]
[321234956,1712007032020,-2996.45497324,0.0005449,15]
[321234957,1712007032031,-237.97,0.0005449,2]
[321234958,1712007032041,-1331.01,0.0005449,2]
[321234959,1712007032051,-150.0,0.00054713,120]
[321234960,1712007032061,-225.67689997,0.00054794,2]
[321234961,1712007032071,-286.5744089,0.00054816,4]
[321234962,1712007032083,-23900.0,0.00054817,2]
[321234963,1712007032094,-150.0,0.000549,2]
[321234964,1712007032104,-1175.72802434,0.00054918,2]
[321234965,1712007032115,-617.48,0.00054928,120]
[321234966,1712007032125,-500.0,0.00054956,2]
[321234967,1712007032136,-384.76,0.00054958,120]
[321234968,1712007032146,-250.0,0.00055132,120]
[321234969,1712007032158,-162.07,0.00055141,120]
[321234970,1712007032168,-728.49,0.00055326,120]
[321234971,1712007032178,-275.57,0.00055381,2]
[321234972,1712007032187,-157.98,0.00055611,2]
[321234973,1712007032196,-157.98,0.00055645,2]
[321234974,1712007032206,-157.98,0.0005568,2]
[321234975,1712007032215,-615.24,0.00055692,120]
[321234976,1712007032224,-165.7,0.00055712,2]
[321234977,1712007032234,-157.98,0.00055715,2]
[321234978,1712007032244,-157.98,0.0005575,2]
[321234979,1712007032253,-157.98,0.00055784,2]
[321234980,1712007032263,-157.98,0.00055819,2]
[321234981,1712007032272,-157.98,0.00055854,2]
[321234982,1712007032439,-195.35,0.00055884,30]
[321234983,1712007032449,-157.98,0.00055889,2]
[321234984,1712007032458,-250.0,0.00056201,120]
[321234985,1712007032467,-157.4,0.00056215,2]
[321234986,1712007032477,-157.4,0.00056947,2]
[321234987,1712007032486,-165.96,0.00056951,2]
[321234988,1712007032495,-151.0,0.00057315,120]
[321234989,1712007032505,-186.84,0.00057441,120]
[321234990,1712007032514,-2002.00000001,0.00057475,120]
[321234991,1712007032523,-275.57,0.00057645,2]
[321234992,1712007032531,-157.4,0.0005768,2]
[321234993,1712007032540,-5000.0,0.00058,15]
[321234994,1712007032550,-239.0,0.000582,10]
[321234995,1712007032559,-152.51,0.000582,9]
[321234996,1712007032568,-152.51,0.000582,9]
[321234997,1712007032578,-152.51,0.000582,9]
[321234998,1712007032587,-152.51,0.000582,9]
[321234999,1712007032596,-152.51,0.000582,9]
[321235000,1712007032605,-152.51,0.000582,9]
[321235001,1712007032615,-152.51,0.000582,9]
[321235002,1712007032624,-157.4,0.00058412,2]
[321235003,1712007032633,-2246.57,0.00058714,2]
[321235004,1712007032642,-442.84484219,0.00058899,4]
[321235005,1712007032651,-157.4,0.00059144,2]
[321235006,1712007032660,-1211.0,0.000592,4]
[321235007,1712007032670,-159.22581972,0.0005964,120]
[321235008,1712007032679,-156.29243952,0.00059687,120]
[321235009,1712007032688,-2500.0,0.00059699,2]
[321235010,1712007032697,-3467.99451284,0.00059699,2]
[321235011,1712007032706,-1000.0,0.000597,2]
[321235012,1712007032715,-337.1387,0.000597,2]
[321235013,1712007032724,-1721.0158,0.000597,2]
[321235014,1712007032734,-19533.3344,0.000597,2]
[321235015,1712007032743,-3627.172,0.000597,2]
[321235016,1712007032752,-1275.40553798,0.000597,31]
[321235017,1712007032761,-150.38124941,0.00059759,120]
[321235018,1712007032771,-166.66666667,0.00059762,120]
[321235019,1712007032780,-175.77416815,0.00059773,120]
[321235020,1712007032789,-174.28,0.00059789,30]
[321235021,1712007032798,-1443.85403433,0.00059797,30]
[321235022,1712007032807,-1921.27100375,0.00059797,4]
[321235023,1712007032817,-294.72243506,0.00059797,4]
[321235024,1712007032826,-288.9081801,0.00059797,4]
[321235025,1712007032835,-168.25332278,0.00059797,4]
[321235026,1712007032844,-1864.54209659,0.00059798,4]
[321235027,1712007032853,-500.0,0.00059798,120]
[321235028,1712007032862,-680.46,0.00059798,120]
[321235029,1712007032871,-599.81,0.00059798,120]
[321235030,1712007032880,-519.19,0.00059798,120]
[321235031,1712007032890,-601.57,0.00059798,120]
[321235032,1712007032899,-513.33,0.00059798,120]
[321235033,1712007032908,-596.47,0.00059798,120]
[321235034,1712007032917,-500.0,0.00059798,120]
[321235035,1712007032926,-3391.36,0.00059798,120]
[321235036,1712007032935,-1369.95,0.00059798,120]
[321235037,1712007032944,-500.0,0.00059798,120]
[321235038,1712007032953,-687.98,0.00059798,120]
[321235039,1712007032962,-1071.64,0.00059798,120]
[321235040,1712007032971,-500.0,0.00059798,120]
[321235041,1712007032981,-1065.74,0.00059798,120]
[321235042,1712007032989,-500.0,0.00059798,120]
[321235043,1712007032998,-500.0,0.00059798,120]
[321235044,1712007033007,-1349.08,0.00059798,120]
[321235045,1712007033017,-500.0,0.00059798,120]
[321235046,1712007033025,-500.0,0.00059798,120]
[321235047,1712007033034,-748.08,0.00059798,120]
[321235048,1712007033043,-500.0,0.00059798,120]
[321235049,1712007033052,-711.74,0.00059798,120]
[321235050,1712007033062,-500.0,0.00059798,120]
[321235051,1712007033071,-500.0,0.00059798,120]
[321235052,1712007033081,-500.0,0.00059798,120]
[321235053,1712007033092,-500.0,0.00059798,120]
[321235054,1712007033101,-500.0,0.00059798,120]
[321235055,1712007033110,-500.0,0.00059798,120]
[321235056,1712007033119,-500.0,0.00059798,120]
[321235057,1712007033129,-500.0,0.00059798,120]
[321235058,1712007033138,-517.59,0.00059798,120]
[321235059,1712007033148,-500.0,0.00059798,120]
[321235060,1712007033158,-500.0,0.00059798,120]
[321235061,1712007033167,-1399.24707348,0.00059799,4]
[321235062,1712007033176,-500.0,0.00059799,120]
[321235063,1712007033185,-500.0,0.00059799,120]
[321235064,1712007033194,-500.0,0.00059799,120]
[321235065,1712007033203,-2645.1,0.00059799,120]
[321235066,1712007033212,-500.0,0.00059799,120]
[321235067,1712007033221,-500.0,0.00059799,120]
[321235068,1712007033231,-5000.0,0.00059799,120]
[321235069,1712007033239,-500.0,0.00059799,120]
[321235070,1712007033250,-500.0,0.00059799,120]
[321235071,1712007033259,-500.0,0.00059799,120]
[321235072,1712007033268,-500.0,0.00059799,120]
[321235073,1712007033278,-500.0,0.00059799,120]
[321235074,1712007033287,-500.0,0.00059799,120]
[321235075,1712007033296,-500.0,0.00059799,120]
[321235076,1712007033305,-500.0,0.00059799,120]
[321235077,1712007033314,-500.0,0.00059799,120]
[321235078,1712007033323,-500.0,0.00059799,120]
[321235079,1712007033333,-500.0,0.00059799,120]
[321235080,1712007033341,-500.0,0.00059799,120]